Cogmind - Beta 16 @@@ ROGUE MODE // 2026.01.24 @ 23:59:29 Player: Dew Result: Destroyed by V4-5M1(R) with Subdweller Laser Performance ------------- Evolutions (0) 0 Regions Visited (3) 600 Robots Destroyed (8) 40 Value Destroyed (139) 139 Prototype IDs (0) 0 Alien Tech Used (0) 0 Bonus (0) 0 TOTAL SCORE: 779 Bonus ------- None Cogmind --------- Core Integrity 0/250 Matter 290/300 Energy 80/100 System Corruption 0% Temperature Cool (6) Movement Core (200) Ox3 Location -10/Subcaves Parts ------- > --- POWER (1) -------- (None) > --- PROPULSION (2) --- (None) > --- UTILITY (2) ------ Medium Storage Unit Seismic Detector > --- WEAPON (2) ------- (None) > --- INVENTORY (10) --- Light Ion Engine Small Storage Unit Improved Terrain Scanner Targeting Computer Datajack Mining Laser Peak State ------------ > --- POWER ------------ Ion Engine > --- PROPULSION ------- Light Treads Light Treads > --- UTILITY ---------- Medium Storage Unit Structural Scanner > --- WEAPON ----------- Small Laser Battle Cannon > --- INVENTORY -------- Light Ion Engine Small Storage Unit Improved Terrain Scanner Seismic Detector Targeting Computer Datajack Mining Laser [Rating: 8] Favorites ----------- Power Ion Engine Engine Ion Engine Propulsion Light Treads Treads Light Treads Leg Aluminum Leg Utility Medium Storage Unit Device Structural Scanner Storage Medium Storage Unit Weapon Beam Cannon Energy Gun Small Laser Energy Cannon Beam Cannon Ballistic Cannon Battle Cannon Special Weapon Mining Laser Build | -11 -10 -10 -10 ------- Run | Yrd Mat Min Sub Slots Evolved . | . . . . Power . | . . . . Propulsion . | . . . . Utility . | . . . . Weapon . | . . . . Parts Attached 9 | . 3 5 1 Power . | . . . . Engine . | . . . . Core . | . . . . Reactor . | . . . . Propulsion 2 | . . 2 . Treads 2 | . . 2 . Leg . | . . . . Wheel . | . . . . Hover . | . . . . Flight . | . . . . Utility 3 | . 2 . 1 Device 2 | . 1 . 1 Storage 1 | . 1 . . Processor . | . . . . Hackware . | . . . . Protection . | . . . . Artifact . | . . . . Weapon 4 | . 1 3 . Energy Gun 1 | . . 1 . Energy Cannon 1 | . 1 . . Ballistic Gun . | . . . . Ballistic Cannon 1 | . . 1 . Launcher . | . . . . Special Weapon 1 | . . 1 . Impact Weapon . | . . . . Slashing Weapon . | . . . . Piercing Weapon . | . . . . Special Melee Weapon . | . . . . Unidentified Prototypes . | . . . . Parts Lost 6 | . . . 6 Power 1 | . . . 1 Propulsion 2 | . . . 2 Utility 1 | . . . 1 Weapon 2 | . . . 2 Highest Loss Streak 6 | . . . 6 To Critical Strikes . | . . . . Average Backups 6 | . 6 5 7 Power 1 | . 1 1 1 Propulsion . | . 2 . . Utility 2 | . . 2 4 Weapon 1 | . 1 1 1 Tool/Special . | . . . . Unused Backups 4 | . . . 4 Power . | . . . . Propulsion . | . . . . Utility 3 | . . . 3 Weapon . | . . . . Tool/Special 1 | . . . 1 Average Slot Usage (%) 92 | . 90 100 76 Engine 13 | . 14 14 10 Treads 16 | . . 23 21 Leg 10 | . 28 4 . Device 10 | . 5 14 9 Storage 14 | . 14 14 14 Energy Gun 10 | . 15 8 9 Energy Cannon 9 | . 12 10 . Ballistic Cannon 3 | . . 3 9 Special Weapon 2 | . . 5 . Peak Build Rating 8 | . 7 8 8 Average Rating 6 | . 6 7 6 On Entrance 6 | 6 6 7 8 Avg Prop Armor Cover (%) . | . . . . Naked Turns . | . . . . Heaviest Build 21 | 13 21 21 20 Greatest Support 40 | 20 20 40 40 Greatest Overweight (x) 3 | . 1 1 3 Average Overweight (x) . | . . . . Largest Inventory Capacity 10 | . 10 10 10 Average Capacity 9 | . 8 10 10 Most Carried 8 | . 8 7 7 Average Carried 6 | . 6 5 7 Final Capacity 10 | 8 10 10 10 Final Carried 7 | 6 7 7 6 Class Distribution -------------------- 100% | Mutant Dominant Class ---------------- Mutant | -10/Materials Mutant | -10/Mines Mutant | -10/Subcaves Resources | -11 -10 -10 -10 ----------- Run | Yrd Mat Min Sub Matter Collected 280 | 200 . 80 . Remotely . | . . . . Salvage Created 228 | . 60 168 . Parts 13 | . 1 12 . Haulers Intercepted 1 | . 1 . . Recyclers Shooed . | . . . . Parts Field Recycled . | . . . . Retrieved Matter . | . . . . Parts Self-Destructed 8 | . . . 8 Prevented . | . . . . Parts Restored . | . . . . Kills | -11 -10 -10 -10 ------- Run | Yrd Mat Min Sub Combat Hostiles Destroyed 7 | . . 7 . Guns 3 | . . 3 . Cannons 4 | . . 4 . Classes Destroyed 5 | . 1 4 . Builder 1 | . . 1 . Hauler 1 | . 1 . . Swarmer 3 | . . 3 . Grunt 3 | . . 3 . Assembled 1 | . . 1 . Best Kill Streak 3 | . 1 3 . Combat Bots Only 3 | . . 3 . Max Kills in Single Turn 1 | . 1 1 . Gunslinging . | . . . . Exploded . | . . . . Melee . | . . . . Uniques/NPCs Destroyed . | . . . . Combat | -11 -10 -10 -10 -------- Run | Yrd Mat Min Sub Hostile Shots Fired 108 | . . 62 46 Missed 26 | . . 11 15 Hits 82 | . . 51 31 Projectile 82 | . . 51 31 Critical Strikes 1 | . . 1 . Damage Taken 1173 | . . 484 689 Core 261 | . . 61 200 Absorbed by Shields . | . . . . Core Remaining (%) 100 | 100 . . . Volleys Fired 33 | . 7 26 . Largest 2 | . 2 2 . Hottest 110 | . 110 110 . Shots Fired 60 | . 12 48 . Gun 31 | . 7 24 . Cannon 29 | . 5 24 . Launcher . | . . . . Special . | . . . . Kinetic . | . . . . Thermal 60 | . 12 48 . Explosive . | . . . . Electromagnetic . | . . . . Robot Hit Streak 7 | . 6 7 . Robot Miss Streak 9 | . 1 9 . Penetration Max . | . . . . Secondary Targets . | . . . . Shots Hit Robots 33 | . 11 22 . Core Hits 11 | . 1 10 . Critical Kills . | . . . . Critical Parts Destroyed . | . . . . Critical Strikes . | . . . . Melee Attacks . | . . . . Impact . | . . . . Slashing . | . . . . Piercing . | . . . . Sneak Attacks . | . . . . Combat Hostiles . | . . . . Follow-up Attacks . | . . . . Damage Inflicted 505 | . 157 348 . Guns 255 | . 86 169 . Cannons 246 | . 71 175 . Explosions . | . . . . Melee . | . . . . Ramming 4 | . . 4 . Kinetic . | . . . . Thermal 501 | . 157 344 . Explosive . | . . . . Electromagnetic . | . . . . Impact . | . . . . Slashing . | . . . . Piercing . | . . . . Highest Corruption . | . . . . Average Corruption . | . . . . Corruption Purged . | . . . . Corruption Blocked . | . . . . Overload Shots . | . . . . Overflow Damage 5 | . 5 . . Projectiles 5 | . 5 . . Explosions . | . . . . Melee . | . . . . Knockbacks . | . . . . Impact . | . . . . Kinetic . | . . . . Secondary . | . . . . Self-Inflicted Damage . | . . . . Shots . | . . . . Rammed 1 | . . 1 . Targets Rammed 2 | . . 2 . Kicked . | . . . . Crushed 1 | . . 1 . Highest Temperature 381 | . 260 381 . Average Temperature 187 | . 141 199 . Received Heat Transfer 243 | . . 66 177 Effects 5 | . 1 4 . Energy Bleed 1 | . . 1 . Interference 3 | . 1 2 . Short Circuit 1 | . . 1 . Siege Activations . | . . . . Martial Activations . | . . . . Shielding Activations . | . . . . Robots Disrupted . | . . . . Combat Hostiles . | . . . . Robots Corrupted . | . . . . Combat Hostiles . | . . . . Parts Fried . | . . . . Impact Corruptions . | . . . . Robots Melted 1 | . 1 . . Combat Hostiles . | . . . . Parts Melted 2 | . 1 1 . Heat Transferred 1188 | . 407 781 . Parts Sabotaged . | . . . . Parts Stolen . | . . . . Parts Stripped . | . . . . Power Chain Reactions . | . . . . Alert | -11 -10 -10 -10 ------- Run | Yrd Mat Min Sub Maximum Alert Level . | . . . . Low Security (%) 100 | . 100 100 . Level 1 . | . . . . Level 2 . | . . . . Level 3 . | . . . . Level 4 . | . . . . Level 5 . | . . . . High Security . | . . . . Max Security . | . . . . Peak Influence 70 | . 7 70 . Initial . | . . . . Average 13 | . . 21 . Influence Increases 142 | . 7 135 . Destroy 0b10 Robot/C 120 | . . 120 . Destroy 0b10 Robot/NC 10 | . 5 5 . Destroy Leader 12 | . 2 10 . Influence Decreases 142 | . 7 135 . Time Decay 142 | . 7 135 . Squads Dispatched . | . . . . Investigation . | . . . . Extermination . | . . . . Reinforcement . | . . . . Assault . | . . . . Garrison . | . . . . Intercept . | . . . . Searches Triggered . | . . . . Construction Impeded . | . . . . Haulers Reinforced . | . . . . Active Scanning Responses . | . . . . Cargo Convoy Interrupts . | . . . . Stealth | -11 -10 -10 -10 --------- Run | Yrd Mat Min Sub Distress Signals . | . . . . Communications Jammed . | . . . . Distress Signals . | . . . . Times Spotted 13 | . 1 7 5 Peak Tracking Total 5 | . 2 3 5 Tactical Retreats . | . . . . Traps | -11 -10 -10 -10 ------- Run | Yrd Mat Min Sub Traps Triggered . | . . . . Indirectly . | . . . . Trap Hack Attempts . | . . . . Triggered . | . . . . Disarmed . | . . . . Reprogrammed . | . . . . Reused . | . . . . Traps Extracted . | . . . . Installed . | . . . . Triggered . | . . . . Machines | -11 -10 -10 -10 ---------- Run | Yrd Mat Min Sub Machines Disabled . | . . . . Max in Single Turn . | . . . . Machines Repaired . | . . . . Machines Dismantled . | . . . . Machines Sabotaged . | . . . . Overloaded Fab Kills . | . . . . Hacking | -11 -10 -10 -10 --------- Run | Yrd Mat Min Sub Machines Accessed 1 | . 1 . . Terminals 1 | . 1 . . Fabricators . | . . . . Repair Stations . | . . . . Recycling Units . | . . . . Scanalyzers . | . . . . Garrison Access . | . . . . Total Hacks 1 | . 1 . . Successful 1 | . 1 . . Failed . | . . . . Catastrophic . | . . . . Database Lockouts . | . . . . Manual . | . . . . Terminals 1 | . 1 . . Fabricators . | . . . . Repair Stations . | . . . . Recycling Units . | . . . . Scanalyzers . | . . . . Garrison Access . | . . . . Terminal Hacks 1 | . 1 . . Locate Traps 1 | . 1 . . Fabricator Hacks . | . . . . Repair Station Hacks . | . . . . Recycling Unit Hacks . | . . . . Scanalyzer . | . . . . Garrison Access Hacks . | . . . . Unauthorized Hacks . | . . . . Terminals . | . . . . Fabricators . | . . . . Repair Stations . | . . . . Recycling Units . | . . . . Scanalyzers . | . . . . Garrison Access . | . . . . Data Cores Recovered . | . . . . Used . | . . . . Hacking Detections 1 | . 1 . . Full Trace Events . | . . . . Feedback Events . | . . . . Feedback Blocked . | . . . . Robot Schematics Acquired . | . . . . Robots Built . | . . . . Authchips . | . . . . Time . | . . . . Total Robot Build Rating . | . . . . Part Schematics Acquired . | . . . . Parts Built . | . . . . Authchips . | . . . . Time . | . . . . Total Part Build Rating . | . . . . Part Studies Acquired . | . . . . Parts Repaired . | . . . . Time . | . . . . Parts Recycled . | . . . . Recycled Matter . | . . . . Retrieved Matter . | . . . . Retrieved Components . | . . . . Parts Scanalyzed . | . . . . Part Schematics Acquired . | . . . . Parts Damaged . | . . . . Bothacking | -11 -10 -10 -10 ------------ Run | Yrd Mat Min Sub Used RIF Installer . | . . . . Robots Hacked . | . . . . Non-combat . | . . . . Combat . | . . . . Robot Hacks Applied . | . . . . Relay Couplers Released . | . . . . Fabnet Peak Effective % . | . . . . Robots Rewired . | . . . . Allies Hacked . | . . . . Hacks Repelled . | . . . . Allies | -11 -10 -10 -10 -------- Run | Yrd Mat Min Sub Total Allies . | . . . . Largest Group . | . . . . Highest-Rated Group . | . . . . Highest-Rated Ally . | . . . . Total Orders . | . . . . Ally Attacks . | . . . . Total Damage . | . . . . Kills . | . . . . Allies Corrupted . | . . . . Allies Melted . | . . . . Intel | -11 -10 -10 -10 ------- Run | Yrd Mat Min Sub Active Infowar (turns) 540 | . 90 350 100 Structural 540 | . 90 350 100 Robot Analysis Total . | . . . . Derelict Logs Recovered 1 | . . 1 . Drone Launches . | . . . . Drone Recoveries . | . . . . Exploration | -11 -10 -10 -10 ------------- Run | Yrd Mat Min Sub Turns Passed 781 | . 226 394 161 Spaces Moved 441 | 1 158 189 93 Core 16 | . . . 16 Treads 259 | . . 182 77 Legs 166 | 1 158 7 . Wheels . | . . . . Hover . | . . . . Flight . | . . . . Fastest Speed 120 | 120 120 160 160 Average Speed 150 | 120 127 161 166 Slowest Speed 200 | 120 190 190 200 Overloaded Moves . | . . . . Propulsion Burnouts . | . . . . Robots Hopped . | . . . . Potential Cave-ins . | . . . . Cave-ins Triggered . | . . . . Exploration Rate (%) 20 | 2 38 33 8 Regions Visited 3 Branch Regions 2 Pre-discovered Areas . | . . . . Known Exits Taken . | . . . . Unknown Exits Taken 3 | 1 1 1 . Scrap Searched 2 | . . 2 . Spaces Dug . | . . . . Terrain Destroyed . | . . . . Melee . | . . . . Projectile . | . . . . AOE . | . . . . Terrain Rammed . | . . . . Walls Destroyed . | . . . . Machines Disabled . | . . . . Actions | -11 -10 -10 -10 --------- Run | Yrd Mat Min Sub Total 501 | . 172 230 99 Wait 7 | . . 2 5 Move 438 | . 157 188 93 Hop . | . . . . Pick Up 5 | . 2 3 . Fast Attach 3 | . 2 1 . Attach 4 | . . 3 1 Detach . | . . . . Swap 2 | . 1 1 . Drop 7 | . 3 4 . Fire 33 | . 7 26 . Melee . | . . . . Ram . | . . . . Kick . | . . . . Crush 2 | . . 2 . Escape Stasis . | . . . . Rewire . | . . . . Trap . | . . . . Miscellaneous . | . . . . Route ------- -11/Scrapyard -10/Materials -10/Mines (discovered 2 exits: [*Mat] / [*Sub]) -10/Subcaves History --------- Turn | Location | Event 1 | -11/Scrapyard | Discovered new exit (range 0) 1 | -11/Scrapyard | Entered Materials 146 | -10/Materials | Discovered new exit (range 12) 227 | -10/Materials | Entered Mines 297 | -10/Mines | Found a hidden stash of uninstalled traps 313 | -10/Mines | Build established: Mutant 326 | -10/Mines | Learned Materials terminal intel 333 | -10/Mines | Excavation squad dispatched 333 | -10/Mines | A large section of the Mines collapsed 526 | -10/Mines | A weapon hastily lodged in a ceiling crevice suddenly fell to the ground 597 | -10/Mines | Discovered new exit (range 9) 598 | -10/Mines | Discovered new exit (range 13) 621 | -10/Mines | Entered Subcaves 622 | -10/Subcaves | Approached by a straggling Scientist 631 | -10/Subcaves | A swath of the cavern ceiling suddenly collapsed 731 | -10/Subcaves | Shifting Twisted Machinery released Shrapnel Trap 770 | -10/Subcaves | Core integrity fell below 50% 780 | -10/Subcaves | Core integrity fell below 20% 781 | -10/Subcaves | Lost 6 parts (1p2n1u2w) 782 | -10/Subcaves | Destroyed by V4-5M1(R) with Subdweller Laser Last Messages --------------- 00559_ Acquired 10 matter. 00590_ Slammed into K-01 Serf. 00597_ EXIT=FOUND LOCATION=UNKNOWN AMBIENT_HEAT=-10 GOAL=ESCAPE 00622_ YV-T9N(c): "Thank the algorithms! I was beginning to lose hope I'd never make it past all the Subs lurking out here." 00625_ YV-T9N(c): "Hey, let me tag along and I can get us both out of this nasty situation. At least I think I can... The group I got separated from was talking about a shortcut back to the UFD." A swath of the cavern ceiling suddenly collapses. YV-T9N(c): "I think it's somewhere northwest of here" 00721_ Structural Scanner destroyed. YV-T9N(c): "I think it's somewhere northwest of here" Shrapnel Trap falls loose from the Twisted Machinery. 00731_ Sml. Laser destroyed. 00735_ Battle Cannon destroyed. 00737_ 4K-K3W(R) destroyed. 00739_ Lgt. Treads destroyed. 00741_ Ion Engine destroyed. 00750_ Lgt. Treads destroyed. Map ----- +----------------------------------------------------+ | ????????????????##### #####???? ""????????????? | | ????????????????### ###"##### " ##?????????????? | | ????????????????## ""#"###"## ###?????????????? | | ???????????????### """"" #""####??????????????? | | ???????????????### #"#"###" ####???????????????? | | ???????????????## ##"#####"#######????????"???? | | ???????????????## "#"###"??## ###"??"""" ???? | | ???????????????## # ####?# ##"??"""" ???? | | ???????????????### ####? #"" " ??""# | | ???????????????#### ##### ###"" & """" # | | ????????????????### #### ###"" """" #? | | ?????????????????## ## """"" "" #?? | | ?????????????????### ##### & """ #??? | | ?????????????????#### ##### *%= " "#??? | | ??????????????????#### ### & ""#### | | ?????????????????##### ## ## " "? | | ????????????########## ### ### ## " ""? | | ????????????####### ## # ######## ### ????? | | ????????????## " " ########## ###?????? | | ????????????###"""" " ####??????# ##??###? | | ?????????????## ##### ####???????## ##?#^"#? | | ?????????????"" "#### ########?????## ###"""# | | ???????????????????## ############### ## " "" | | ??????????????######## # ## # """"# | | ??????????????## # ### # R R # | | ?????????????"""" @ ####### # | | ????????????? ""# # ###; ######## ^ | | ???????????????############### R ###### ^ | | ?????????????????########?##### # # # ## | | ??????????????????????????????# ##? | | ??????????????????????????????### # # ##?? | | ????????????????????????????????######### ###??? | | ?????????????????????????????????###????## #????? | | ??????????????????????????????????????????###????? | | ?????????????????????????????????????????????????? | | ?????????????????????????????????????????????????? | | ?????????????????????????????????????????????????? | | ?????????????????????????????????????????????????? | | ?????????????????????????????????????????????????? | | ?????????????????????????????????????????????????? | | ?????????????????????????????????????????????????? | | ?????????????????????????????????????????????????? | | ?????????????????????????????????????????????????? | | ?????????????????????????????????????????????????? | | ?????????????????????????????????????????????????? | | ?????????????????????????????????????????????????? | | ?????????????????????????????????????????????????? | | ?????????????????????????????????????????????????? | | ?????????????????????????????????????????????????? | | | +----------------------------------------------------+ Best States ------------- Heat Dissipation 25 Energy Generation 10 Energy Capacity 250 Matter Stores 300 Matter Capacity 300 Sight Range 16 Terrain Scan Density 10 Evasion (%) 55 Recoil Reduction 2 Item Schematics ----------------- None Robot Schematics ------------------ None Fabricated ------------ Nothing Repaired ---------- Nothing Studied --------- None Alien Tech Used ----------------- None Achievements -------------- None Challenges ------------ None Game ------ Seed BottomlessArmorStreamer Manual? 0 Play Time 00:08:44 Cumulative 21.1 hours Start 2026.01.24 @ 23:51:59 End 2026.01.24 @ 23:59:29 Sessions 1 Manual Loads 0 Difficulty Rogue Special Mode None Game No. 35 Rogue 35 Adventurer 0 Explorer 0 Win Type - Total 0 Types 0/0/0/0/0/0/0/0/0/0 Lore% 9 Gallery% 21 Achievement% 16 Wizard Run 0 Options --------- Layout 0 ASCII 0 Keyboard 0 Movement Mouse Keybinds 0 Fullscreen 1 Font 24/Smallcaps Map View 183x50 Zoom Use 0% Tactical HUD 1 Map Filters NONE Filters NONE Steam 1 RUN: 5343a0ad-ff6b-4a95-8c51-b51e0e9a0bb6